bitfinex-derivatives/quotes_BTCF0:USTF0_20230702
["timestamp","ask_amount","ask_price","bid_price","bid_amount"]
[1688335734298,0.058818,30604.0,30603.0,0.267105]
[1688335735791,0.29770216,30605.0,30603.0,0.267105]
[1688335735995,0.31593185,30605.0,30604.0,0.2482]
[1688335736195,0.31655161,30605.0,30604.0,0.267804]
[1688335737499,0.29770216,30605.0,30604.0,0.267804]
[1688335737899,0.31655161,30605.0,30604.0,0.267804]
[1688335738100,0.29770216,30605.0,30604.0,0.267804]
[1688335742508,0.29670216,30605.0,30604.0,0.267804]
[1688335745705,0.29676216,30605.0,30604.0,0.267804]
[1688335745911,0.31499185,30605.0,30604.0,0.267804]
[1688335746105,0.3338413,30605.0,30604.0,0.267804]
[1688335746809,0.31561161,30605.0,30604.0,0.267804]
[1688335747306,0.3338413,30605.0,30604.0,0.267804]
[1688335747611,0.31561161,30605.0,30604.0,0.267804]
[1688335749018,0.3338413,30605.0,30604.0,0.267804]
[1688335749206,0.31561161,30605.0,30604.0,0.267804]
[1688335749608,0.3338413,30605.0,30604.0,0.267804]
[1688335751120,0.31561161,30605.0,30604.0,0.267804]
[1688335751522,0.3338413,30605.0,30604.0,0.267804]
[1688335756515,0.31661161,30605.0,30604.0,0.267804]
[1688335757325,0.3348413,30605.0,30604.0,0.267804]
[1688335757613,0.31661161,30605.0,30604.0,0.267804]
[1688335758123,0.3348413,30605.0,30604.0,0.267804]
[1688335758917,0.31661161,30605.0,30604.0,0.267804]
[1688335759124,0.29776216,30605.0,30604.0,0.267804]
[1688335765127,0.3348413,30605.0,30604.0,0.2482]
[1688335770136,0.0866413,30605.0,30604.0,0.2482]
[1688335770833,0.4474413,30605.0,30604.0,0.2482]
[1688335772626,0.6956413,30605.0,30604.0,0.2482]
[1688335775828,0.6956413,30605.0,30604.0,0.267804]
[1688335776438,0.65856216,30605.0,30604.0,0.267804]
[1688335777231,0.67679185,30605.0,30604.0,0.267804]
[1688335777631,0.6956413,30605.0,30604.0,0.267804]
[1688335778141,0.4474413,30605.0,30604.0,0.267804]
[1688335778340,0.06779185,30605.0,30604.0,0.267804]
[1688335779127,0.04956216,30605.0,30604.0,0.267804]
[1688335779333,0.06779185,30605.0,30604.0,0.267804]
[1688335781139,0.4474413,30605.0,30604.0,0.267804]
[1688335784844,0.4474413,30605.0,30604.0,0.2482]
[1688335788453,0.6956413,30605.0,30604.0,0.2482]
[1688335790550,0.76064643,30605.0,30604.0,0.2482]
[1688335790746,0.78649151,30605.0,30604.0,0.2482]
[1688335791647,0.72148638,30605.0,30604.0,0.2482]
[1688335802173,0.72148638,30605.0,30604.0,0.267804]
[1688335802570,0.72148638,30605.0,30604.0,0.32219951]
[1688335803974,0.72148638,30605.0,30604.0,0.267804]
[1688335805174,0.41036216,30605.0,30604.0,0.267804]
[1688335805769,0.42859185,30605.0,30604.0,0.267804]
[1688335805962,0.45016958,30605.0,30604.0,0.267804]
[1688335807671,0.45022958,30605.0,30604.0,0.267804]
[1688335809281,0.4474413,30605.0,30604.0,0.267804]
[1688335812078,0.4474413,30605.0,30603.0,0.2477]
[1688335812079,0.6956413,30605.0,30603.0,0.2477]
[1688335812279,0.6956413,30605.0,30598.0,0.00049016]
[1688335812280,0.05,30602.0,30598.0,0.00049016]
[1688335812475,0.2482,30598.0,30593.0,0.333311]
[1688335812672,0.2482,30598.0,30590.0,0.05884]
[1688335812673,0.6069,30594.0,30590.0,0.267813]
[1688335812878,0.6067,30591.0,30590.0,0.267813]
[1688335813077,0.265513,30591.0,30590.0,0.267813]
[1688335813269,0.22955412,30591.0,30590.0,0.019613]
[1688335813473,0.019612,30592.0,30590.0,0.019613]
[1688335813668,0.019612,30592.0,30591.0,0.2467]
[1688335813876,0.03846145,30592.0,30591.0,0.266313]
[1688335814583,0.019612,30592.0,30591.0,0.266313]
[1688335815373,0.03846145,30592.0,30591.0,0.266313]
[1688335815678,0.03846145,30592.0,30591.0,0.27305944]
[1688335819889,0.019612,30592.0,30591.0,0.27305944]
[1688335820684,0.05669114,30592.0,30591.0,0.27305944]
[1688335821086,0.03846145,30592.0,30591.0,0.27305944]
[1688335823686,0.05669114,30592.0,30591.0,0.27305944]
[1688335824391,0.03846145,30592.0,30591.0,0.27305944]
[1688335824585,0.019612,30592.0,30591.0,0.27305944]
[1688335825092,0.03784169,30592.0,30591.0,0.27305944]
[1688335825493,0.05669114,30592.0,30591.0,0.27305944]
[1688335826497,0.03846145,30592.0,30591.0,0.27305944]
[1688335829097,0.05669114,30592.0,30591.0,0.27305944]
[1688335829694,0.03846145,30592.0,30591.0,0.27305944]
[1688335830092,0.05669114,30592.0,30591.0,0.27305944]
[1688335830594,0.03846145,30592.0,30591.0,0.27305944]
[1688335831002,0.05669114,30592.0,30591.0,0.27305944]
[1688335832699,0.03846145,30592.0,30591.0,0.27305944]
[1688335832999,0.03898017,30592.0,30591.0,0.27305944]
[1688335834303,0.02013072,30592.0,30591.0,0.27305944]
[1688335834805,0.019612,30592.0,30591.0,0.27305944]
[1688335837911,0.02013146,30592.0,30591.0,0.27305944]
[1688335838894,0.0572106,30592.0,30591.0,0.27305944]
[1688335840400,0.03898091,30592.0,30591.0,0.27305944]
[1688335840908,0.03898091,30592.0,30591.0,0.27513423]
[1688335841109,0.0572106,30592.0,30591.0,0.27513423]
[1688335842209,0.03898091,30592.0,30591.0,0.27513423]
[1688335850614,0.02013146,30592.0,30591.0,0.27513423]
[1688335855210,0.0572106,30592.0,30591.0,0.27513423]
[1688335855416,0.03898091,30592.0,30591.0,0.27513423]
[1688335860110,0.0572106,30592.0,30591.0,0.27513423]
[1688335860414,0.03898091,30592.0,30591.0,0.27513423]
[1688335862716,0.02013146,30592.0,30591.0,0.27513423]
[1688335863816,0.03836115,30592.0,30591.0,0.27513423]
[1688335865714,0.0572106,30592.0,30591.0,0.27513423]
[1688335866406,0.3043106,30592.0,30591.0,0.27513423]
[1688335866611,0.28608091,30592.0,30591.0,0.27513423]
[1688335867713,0.3043106,30592.0,30591.0,0.27513423]
[1688335868714,0.28608091,30592.0,30591.0,0.27513423]
[1688335868913,0.3043106,30592.0,30591.0,0.27513423]
[1688335872525,0.3043106,30592.0,30591.0,0.27613423]
[1688335875444,0.3043106,30592.0,30591.0,0.27663423]
[1688335877037,0.26723146,30592.0,30591.0,0.27663423]
[1688335877233,0.3043106,30592.0,30591.0,0.27663423]
[1688335879342,0.28608091,30592.0,30591.0,0.27663423]
[1688335880338,0.26723146,30592.0,30591.0,0.27663423]
[1688335882647,0.26723146,30592.0,30591.0,0.02843423]
[1688335883353,0.28546115,30592.0,30591.0,0.02843423]
[1688335884946,0.26723146,30592.0,30591.0,0.02843423]
[1688335885252,0.28546115,30592.0,30591.0,0.02843423]
[1688335886451,0.28608091,30592.0,30591.0,0.02843423]
[1688335887848,0.3043106,30592.0,30591.0,0.02843423]
[1688335889742,0.3043106,30592.0,30591.0,0.38923423]
[1688335889938,0.28608091,30592.0,30591.0,0.38923423]
[1688335890553,0.28608091,30592.0,30591.0,0.02843423]
[1688335890742,0.3043106,30592.0,30591.0,0.38923423]
[1688335890947,0.28608091,30592.0,30591.0,0.38923423]
[1688335891348,0.26723146,30592.0,30591.0,0.38923423]
[1688335892041,0.26723146,30592.0,30591.0,0.02843423]
[1688335892245,0.26723146,30592.0,30591.0,0.38923423]
[1688335892452,0.26723146,30592.0,30591.0,0.27663423]
[1688335892652,0.26723146,30592.0,30591.0,0.63743423]
[1688335893049,0.00051946,30592.0,30591.0,0.63743423]
[1688335894054,0.00049034,30594.0,30591.0,0.63743423]
[1688335894249,0.02010134,30594.0,30593.0,0.2477]
[1688335894444,0.02010134,30594.0,30593.0,0.267311]
[1688335894643,0.02010134,30594.0,30593.0,0.019611]
[1688335894644,0.28595079,30594.0,30593.0,0.019611]
[1688335894851,0.66562879,30594.0,30593.0,0.019611]
[1688335896351,0.66562879,30594.0,30593.0,0.02844085]
[1688335898659,0.66562879,30594.0,30593.0,0.00882985]
[1688335898847,0.66562879,30594.0,30592.0,0.019612]
[1688335899053,0.26704945,30593.0,30592.0,0.019612]
[1688335899363,0.30489014,30593.0,30592.0,0.019612]
[1688335899951,0.30553752,30593.0,30592.0,0.019612]
[1688335905467,0.30553752,30593.0,30592.0,0.02844324]
[1688335906268,0.30553752,30593.0,30592.0,0.35744324]
[1688335920387,0.28730783,30593.0,30592.0,0.35744324]
[1688335920687,0.30553752,30593.0,30592.0,0.35744324]
[1688335920872,0.28730783,30593.0,30592.0,0.35744324]
[1688335921577,0.30553752,30593.0,30592.0,0.35744324]
[1688335926194,0.01949683,30593.0,30592.0,0.60514324]
[1688335926386,0.430402,30608.0,30597.0,1.0]
[1688335926590,0.430402,30608.0,30607.0,0.2482]
[1688335926883,0.49920845,30608.0,30607.0,0.26704945]
[1688335927084,0.51820845,30608.0,30607.0,0.26704945]
[1688335927283,0.51820845,30608.0,30607.0,0.267802]
[1688335927284,0.43371791,30608.0,30607.0,0.267802]
[1688335927487,0.45271791,30608.0,30607.0,0.267802]
[1688335927679,0.47156736,30608.0,30607.0,0.267802]
[1688335927876,0.45256736,30608.0,30607.0,0.267802]
[1688335928190,0.45179705,30608.0,30607.0,0.267802]
[1688335930783,0.43356736,30608.0,30607.0,0.267802]
[1688335930994,0.45179705,30608.0,30607.0,0.267742]
[1688335931493,0.45325352,30608.0,30607.0,0.267742]
[1688335935598,0.09245352,30608.0,30607.0,0.267742]
[1688335936791,0.07360407,30608.0,30607.0,0.267742]
[1688335936992,0.05537438,30608.0,30607.0,0.267742]
[1688335937296,0.07360407,30608.0,30607.0,0.267742]
[1688335938986,0.00537438,30608.0,30607.0,0.64739145]
[1688335939185,0.31679008,30611.0,30607.0,0.64739145]
[1688335939186,0.00049008,30611.0,30607.0,0.64739145]
[1688335939395,0.00049008,30611.0,30610.0,0.2482]
[1688335939601,0.00049008,30611.0,30610.0,0.6286]
[1688335940095,0.00049008,30611.0,30610.0,0.64744945]
[1688335940691,0.00049008,30611.0,30610.0,0.65251941]
[1688335950404,0.00049008,30611.0,30610.0,0.97331941]
[1688335951994,0.00049008,30611.0,30610.0,0.97144438]
[1688335954610,0.00049008,30611.0,30610.0,0.61064438]
[1688335954797,0.00049008,30611.0,30610.0,1.33224438]
[1688335956111,0.01871977,30611.0,30610.0,0.95259493]
[1688335956611,0.01871977,30611.0,30610.0,0.9494]
[1688335956802,0.03756922,30611.0,30610.0,0.9494]
[1688335958811,0.03756922,30611.0,30610.0,0.6286]
[1688335958812,0.05716922,30611.0,30610.0,0.6286]
[1688335959013,0.05716922,30611.0,30608.0,0.058802]
[1688335959014,0.66516922,30611.0,30608.0,0.058802]
[1688335959207,0.267801,30609.0,30608.0,0.058802]
[1688335959808,0.30488014,30609.0,30608.0,0.058802]
[1688335962116,0.30488014,30609.0,30607.0,0.065336]
[1688335962316,0.2482,30607.0,30606.0,0.019602]
[1688335962615,0.876802,30607.0,30606.0,0.019602]
[1688335962807,0.91388114,30607.0,30606.0,0.019602]
[1688335963405,0.91388114,30607.0,30604.0,0.05930308]
[1688335963612,0.247,30605.0,30604.0,0.05930308]
[1688335963813,0.30368314,30605.0,30604.0,0.05930308]
[1688335964112,0.019605,30602.0,30601.0,0.019606]
[1688335964315,0.66568414,30602.0,30601.0,0.019606]
[1688335964512,0.66568414,30602.0,30599.0,0.019607]
[1688335964712,0.267807,30600.0,30599.0,0.019607]
[1688335965412,0.267807,30600.0,30599.0,0.03541745]
[1688335965705,0.30488614,30600.0,30599.0,0.03541745]
[1688335965922,0.28603669,30600.0,30599.0,0.03541745]
[1688335966511,0.30488614,30600.0,30599.0,0.03541745]
[1688335966816,0.30488614,30600.0,30599.0,0.01581045]
[1688335967011,0.2482,30598.0,30597.0,0.058827]
[1688335967212,0.91388714,30598.0,30597.0,0.07598207]
[1688335967406,0.91388714,30598.0,30596.0,0.0200992]
[1688335967610,0.28407914,30597.0,30596.0,0.0200992]
[1688335967814,0.30368814,30597.0,30596.0,0.0200992]
[1688335970913,0.6067,30598.0,30596.0,0.28714865]
[1688335971114,0.6067,30598.0,30597.0,0.2477]
[1688335971410,0.6067,30598.0,30597.0,0.267309]
[1688335972019,0.62492969,30598.0,30597.0,0.267309]
[1688335972522,0.64377914,30598.0,30597.0,0.267309]
[1688335972723,0.66338714,30598.0,30597.0,0.267309]
[1688335973530,0.2459,30598.0,30597.0,0.267309]
[1688335974218,0.2459,30598.0,30597.0,0.28615845]
[1688335975029,0.28297914,30598.0,30597.0,0.267309]
[1688335979726,0.2459,30598.0,30597.0,0.267309]
[1688335980232,0.2459,30598.0,30597.0,0.28615845]
[1688335980529,0.2459,30598.0,30597.0,0.2988014]
[1688335981325,0.26412969,30598.0,30597.0,0.2988014]
[1688335982125,0.26412969,30598.0,30597.0,0.27995195]
[1688335982633,0.26532969,30598.0,30597.0,0.27995195]
[1688335982932,0.2471,30598.0,30597.0,0.27995195]
[1688335983431,0.2471,30598.0,30597.0,0.2988014]
[1688335984019,0.28417914,30598.0,30597.0,0.27995195]
[1688335986124,0.2471,30598.0,30597.0,0.27995195]
[1688335989630,0.2471,30598.0,30597.0,0.2988014]
[1688335990137,0.2482,30598.0,30597.0,0.0511014]
[1688335990724,0.26642969,30598.0,30597.0,0.0511014]
[1688335990930,0.2482,30598.0,30597.0,0.0511014]
[1688335991929,0.26642969,30598.0,30597.0,0.03225195]
[1688335992530,0.26642969,30598.0,30597.0,0.27995195]
[1688335992738,0.28527914,30598.0,30597.0,0.27995195]
[1688335994033,0.26704945,30598.0,30597.0,0.27995195]
[1688335994534,0.28527914,30598.0,30597.0,0.27995195]
[1688335994727,0.28527914,30598.0,30597.0,0.64075195]
[1688335995942,0.2482,30598.0,30597.0,0.6596014]
[1688335998639,0.26642969,30598.0,30597.0,0.6596014]
[1688335999036,0.2482,30598.0,30597.0,0.64075195]
[1688336000736,0.26704945,30598.0,30597.0,0.64075195]
[1688336001043,0.28527914,30598.0,30597.0,0.64075195]
[1688336001742,0.26704945,30598.0,30597.0,0.64075195]
[1688336002643,0.26704945,30598.0,30597.0,0.39305195]
[1688336004143,0.2482,30598.0,30597.0,0.4119014]
[1688336005148,0.26704945,30598.0,30597.0,0.39305195]
[1688336006149,0.28527914,30598.0,30597.0,0.39305195]
[1688336008647,0.26704945,30598.0,30597.0,0.39305195]
[1688336009254,0.2482,30598.0,30597.0,0.39305195]
[1688336009759,0.2482,30598.0,30597.0,0.4119014]
[1688336009947,0.2482,30598.0,30597.0,0.0511014]
[1688336010149,0.2482,30598.0,30597.0,0.4119014]
[1688336011240,0.2482,30598.0,30597.0,0.39305195]
[1688336012255,0.26642969,30598.0,30597.0,0.39305195]
[1688336012556,0.26642969,30598.0,30597.0,0.63985195]
[1688336012751,0.26642969,30598.0,30597.0,0.27905195]
[1688336012951,0.26642969,30598.0,30597.0,0.63985195]
[1688336013347,0.2482,30598.0,30597.0,0.63985195]
[1688336014857,0.26642969,30598.0,30597.0,0.63985195]
[1688336016944,0.2482,30598.0,30597.0,0.63985195]
[1688336017151,0.2482,30598.0,30597.0,0.6587014]
[1688336018053,0.2482,30598.0,30597.0,0.2979014]
[1688336018256,0.2482,30598.0,30597.0,0.6587014]
[1688336018944,0.26642969,30598.0,30597.0,0.6587014]
[1688336019255,0.28527914,30598.0,30597.0,0.63985195]
[1688336020959,0.26704945,30598.0,30597.0,0.63985195]
[1688336021347,0.28527914,30598.0,30597.0,0.63985195]
[1688336021748,0.2482,30598.0,30597.0,0.63985195]
[1688336022660,0.2482,30598.0,30597.0,0.64075195]
[1688336022845,0.2482,30598.0,30597.0,0.6596014]
[1688336025461,0.2482,30598.0,30597.0,0.2988014]
[1688336025661,0.2482,30598.0,30597.0,0.6596014]
[1688336027358,0.2482,30598.0,30597.0,0.4119014]
[1688336029157,0.2482,30598.0,30597.0,0.0511014]
[1688336029361,0.2482,30598.0,30597.0,0.4119014]
[1688336031666,0.2482,30601.0,30597.0,0.6601014]
[1688336031865,0.0004902,30603.0,30600.0,0.609]
[1688336032165,0.3043902,30603.0,30602.0,0.2468]
[1688336032353,0.3043902,30603.0,30602.0,0.28525445]
[1688336032553,0.3043902,30603.0,30602.0,0.29319438]
[1688336032751,0.0004902,30603.0,30602.0,0.59619438]
[1688336035274,0.0004902,30603.0,30602.0,0.57734493]
[1688336036880,0.01933965,30603.0,30602.0,0.57734493]
[1688336038379,0.01933965,30603.0,30602.0,0.93814493]
[1688336038685,0.01933965,30603.0,30602.0,0.57734493]
[1688336038879,0.01933965,30603.0,30602.0,0.93814493]
[1688336040189,0.0004902,30603.0,30602.0,0.93814493]
[1688336040583,0.0004902,30603.0,30602.0,0.99254044]
[1688336041081,0.0004902,30603.0,30602.0,0.95699438]
[1688336041489,0.01871989,30603.0,30602.0,0.93814493]
[1688336041789,0.0004902,30603.0,30602.0,0.93814493]
[1688336041990,0.0004902,30603.0,30602.0,0.9643935]
[1688336043083,0.01933965,30603.0,30602.0,0.9643935]
[1688336044586,0.03756934,30603.0,30602.0,0.9643935]
[1688336045296,0.01933965,30603.0,30602.0,0.9643935]
[1688336048296,0.0004902,30603.0,30602.0,0.9643935]
[1688336049291,0.0004902,30603.0,30602.0,0.98324295]
[1688336052501,0.2474902,30603.0,30602.0,0.98324295]
[1688336053605,0.2474902,30603.0,30602.0,0.95699438]
[1688336053793,0.2474902,30603.0,30602.0,0.93814493]
[1688336054394,0.2474902,30603.0,30602.0,0.57734493]
[1688336054699,0.26633965,30603.0,30602.0,0.93814493]
[1688336055095,0.26633965,30603.0,30602.0,0.57734493]
[1688336055498,0.26633965,30603.0,30602.0,0.93814493]
[1688336055999,0.2474902,30603.0,30602.0,0.93814493]
[1688336056898,0.2474902,30603.0,30602.0,0.57734493]
[1688336057099,0.2474902,30603.0,30602.0,0.93814493]
[1688336057599,0.0004902,30603.0,30602.0,0.95699438]
[1688336059703,0.0004902,30603.0,30602.0,0.59619438]
[1688336059895,0.0004902,30603.0,30602.0,0.95699438]
[1688336062600,0.2486902,30603.0,30602.0,0.95699438]
[1688336064503,0.2486902,30603.0,30602.0,0.59619438]
[1688336064690,0.2486902,30603.0,30602.0,0.95699438]
[1688336066193,0.2486902,30603.0,30602.0,0.59619438]
[1688336066502,0.2486902,30603.0,30602.0,0.95699438]
[1688336067908,0.2486902,30603.0,30602.0,0.93814493]
[1688336070012,0.2486902,30603.0,30602.0,0.59619438]
[1688336070206,0.2486902,30603.0,30602.0,0.95699438]
[1688336072913,0.2486902,30603.0,30602.0,0.93814493]
[1688336073804,0.2486902,30603.0,30602.0,0.57734493]
[1688336074111,0.2486902,30603.0,30602.0,0.93814493]
[1688336075201,0.2486902,30603.0,30602.0,0.95699438]
[1688336077109,0.0004902,30603.0,30602.0,0.95699438]
[1688336080711,0.0004902,30603.0,30602.0,0.59619438]
[1688336080908,0.0004902,30603.0,30602.0,1.31779438]
[1688336081813,0.0004902,30603.0,30602.0,0.59619438]
[1688336082019,0.0004902,30603.0,30602.0,1.31779438]
[1688336086116,0.0004902,30603.0,30602.0,0.59619438]
[1688336086414,0.0004902,30603.0,30602.0,1.31779438]
[1688336088911,0.0004902,30603.0,30602.0,0.59619438]
[1688336089223,0.0004902,30603.0,30602.0,1.31779438]
[1688336090923,0.0004902,30603.0,30602.0,0.59619438]
[1688336091119,0.0004902,30603.0,30602.0,1.31779438]
[1688336096619,0.0004902,30603.0,30602.0,0.59619438]
[1688336096816,0.0004902,30603.0,30602.0,1.31779438]
[1688336097019,0.0004902,30603.0,30602.0,0.59619438]
[1688336097215,0.0004902,30603.0,30602.0,1.31779438]
[1688336098221,0.0004902,30603.0,30602.0,0.59619438]
[1688336098420,0.0004902,30603.0,30602.0,1.31779438]
[1688336107531,0.72236504,30610.0,30603.0,0.01884945]
[1688336107726,0.266599,30613.0,30609.0,0.2482]
[1688336108023,0.35634845,30612.0,30610.0,0.03844945]
[1688336108233,0.337499,30612.0,30611.0,0.6271]
[1688336108419,0.3179,30612.0,30611.0,0.64594945]
[1688336111327,0.3179,30612.0,30611.0,0.6271]
[1688336114134,0.35497914,30612.0,30611.0,0.6271]
[1688336115020,0.33674945,30612.0,30611.0,0.6271]
[1688336115727,0.33674945,30612.0,30611.0,0.62704]
[1688336120040,0.33674945,30612.0,30611.0,0.26624]
[1688336120224,0.33674945,30612.0,30611.0,0.62704]
[1688336120841,0.35497914,30612.0,30611.0,0.62704]
[1688336121039,0.37457814,30612.0,30611.0,0.62704]
[1688336122643,0.60354845,30612.0,30611.0,0.3804]
[1688336124039,0.62177814,30612.0,30611.0,0.3804]
[1688336125136,0.62177814,30612.0,30611.0,0.0196]
[1688336125743,0.62177814,30612.0,30611.0,0.3804]
[1688336125936,0.60354845,30612.0,30611.0,0.3804]
[1688336126331,0.62177814,30612.0,30611.0,0.3804]
[1688336126731,0.60354845,30612.0,30611.0,0.3804]
[1688336126946,0.62177814,30612.0,30611.0,0.3804]
[1688336127745,0.60354845,30612.0,30611.0,0.3804]
[1688336128737,0.62177814,30612.0,30611.0,0.3804]
[1688336132652,0.62177814,30612.0,30611.0,0.6286]
[1688336132942,0.62236596,30612.0,30611.0,0.6286]
[1688336134947,0.60413627,30612.0,30611.0,0.6286]
[1688336135640,0.62236596,30612.0,30611.0,0.6286]
[1688336137151,0.62236596,30612.0,30608.0,0.02661878]
[1688336137152,0.05,30610.0,30608.0,0.02661878]
[1688336137349,0.05,30606.0,30603.0,0.019604]
[1688336137539,0.609,30604.0,30603.0,0.019604]
[1688336137765,0.3608,30609.0,30603.0,0.019604]
[1688336137766,0.15396504,30611.0,30603.0,1.71285345]
[1688336138050,0.3608,30618.0,30611.0,0.0261]
[1688336138051,0.11780881,30617.0,30611.0,0.0261]
[1688336138237,0.00017793,30617.0,30616.0,0.2482]
[1688336138437,0.2477679,30617.0,30616.0,0.2482]
[1688336138651,0.3614679,30617.0,30616.0,0.2482]
[1688336138844,0.6084679,30617.0,30613.0,0.2482]
[1688336139050,0.03707914,30616.0,30614.0,0.01884945]
[1688336139349,0.26704945,30616.0,30615.0,0.2533]
[1688336139547,0.28527914,30616.0,30615.0,0.2533]
[1688336139745,0.2482,30616.0,30615.0,0.2533]
[1688336140049,0.0006679,30617.0,30615.0,0.65254645]
[1688336140239,0.0006679,30617.0,30616.0,0.2477]
[1688336140440,0.0006679,30617.0,30616.0,0.64694645]
[1688336140740,0.0006679,30617.0,30616.0,0.28614645]
[1688336140940,0.0006679,30617.0,30616.0,0.60554645]
[1688336141348,0.564,30622.0,30616.0,0.96634645]
[1688336141550,0.2482,30622.0,30621.0,0.2475]
[1688336141748,0.66567214,30622.0,30616.0,0.6802]
[1688336141951,0.3158,30621.0,30619.0,0.2477]
[1688336142147,0.2482,30620.0,30619.0,0.2477]
[1688336142350,0.28527914,30620.0,30619.0,0.2477]
[1688336142548,0.28527914,30620.0,30618.0,0.019595]
[1688336142742,0.2482,30619.0,30618.0,0.019595]
[1688336142938,0.609,30619.0,30618.0,0.019595]
[1688336143141,0.628595,30619.0,30618.0,0.019595]
[1688336143346,0.66567414,30619.0,30618.0,0.019595]
[1688336145354,0.66567414,30619.0,30616.0,0.31988988]
[1688336145550,0.2471,30617.0,30616.0,0.31988988]
[1688336145850,0.28417914,30617.0,30616.0,0.31988988]
[1688336146055,0.3084218,30617.0,30616.0,0.31988988]
[1688336149059,0.3084218,30617.0,30616.0,0.00048988]
[1688336150658,0.29019211,30617.0,30616.0,0.00048988]
[1688336151259,0.3084218,30617.0,30616.0,0.00048988]
[1688336155049,0.3084218,30617.0,30616.0,0.02008588]
[1688336155267,0.25174666,30617.0,30616.0,0.02008588]
[1688336155965,0.2888258,30617.0,30616.0,0.02008588]
[1688336160771,0.27059611,30617.0,30616.0,0.02008588]
[1688336161360,0.25174666,30617.0,30616.0,0.02008588]
[1688336161871,0.25174666,30617.0,30616.0,0.03893533]
[1688336162563,0.25074666,30617.0,30616.0,0.28643533]
[1688336165176,0.42873914,30622.0,30616.0,0.28643533]
[1688336165177,0.06755614,30622.0,30616.0,0.64723533]
[1688336165469,0.06755614,30622.0,30621.0,0.267793]
[1688336165671,0.06755614,30622.0,30621.0,0.28664245]
[1688336166257,0.06755614,30622.0,30621.0,0.64413796]
[1688336167282,0.744297,30628.0,30624.0,0.2482]
[1688336167283,0.11763088,30628.0,30624.0,0.2482]
[1688336167464,0.2482,30630.0,30628.0,0.019589]
[1688336167776,0.01884945,30630.0,30629.0,0.570388]
[1688336167965,0.019586,30633.0,30629.0,0.570388]
[1688336168160,0.2482,30630.0,30629.0,0.570388]
[1688336168567,0.3208252,30630.0,30629.0,0.322688]
[1688336168769,0.35926265,30630.0,30626.0,0.04946572]
[1688336169070,0.2472,30627.0,30626.0,0.04946572]
[1688336169767,0.2472,30627.0,30626.0,0.36216572]
[1688336170077,0.26604945,30627.0,30626.0,0.36216572]
[1688336171777,0.2482,30630.0,30626.0,0.62771517]
[1688336171970,0.2482,30630.0,30629.0,0.2482]
[1688336172168,0.2482,30630.0,30629.0,0.28663745]
[1688336172479,0.2482,30632.0,30629.0,0.28663745]
[1688336172666,0.00048861,30633.0,30631.0,0.2477]
[1688336172870,0.00048861,30633.0,30629.0,0.019588]
[1688336172871,0.00048861,30633.0,30632.0,0.609]
[1688336173075,0.00048861,30633.0,30632.0,0.628586]
[1688336173385,0.05,30639.0,30634.0,0.2477]
[1688336173681,0.01822969,30638.0,30635.0,0.019584]
[1688336173869,0.35259551,30639.0,30635.0,0.019584]
[1688336173870,0.608,30636.0,30635.0,0.019584]
[1688336174378,0.64607914,30636.0,30635.0,0.019584]
[1688336174886,0.64607914,30636.0,30632.0,0.00048963]
[1688336174887,0.2482,30635.0,30632.0,0.00048963]
[1688336175078,0.6079,30633.0,30632.0,0.00048963]
[1688336175575,0.65405269,30633.0,30632.0,0.00048963]
[1688336177179,0.65411269,30633.0,30632.0,0.00048963]
[1688336178677,0.635883,30633.0,30632.0,0.00048963]
[1688336178979,0.65411269,30633.0,30632.0,0.00048963]
[1688336184976,0.65411269,30633.0,30632.0,0.32208963]
[1688336186274,0.635883,30633.0,30632.0,0.34167563]
[1688336186878,0.65411269,30633.0,30632.0,0.34167563]
[1688336188071,0.67369869,30633.0,30632.0,0.02007563]
[1688336190173,0.67369869,30633.0,30632.0,0.00048963]
[1688336192077,0.67369869,30633.0,30629.0,0.302]
[1688336192379,0.627487,30630.0,30629.0,0.302]
[1688336192573,0.63656112,30630.0,30629.0,0.302]
[1688336192774,0.67364026,30630.0,30629.0,0.302]
[1688336193483,0.67364026,30630.0,30627.0,0.058768]
[1688336193670,0.2482,30628.0,30627.0,0.385368]
[1688336194383,0.29435331,30628.0,30627.0,0.385368]
[1688336196686,0.27612362,30628.0,30627.0,0.385368]
[1688336196886,0.29435331,30628.0,30627.0,0.385368]
[1688336197077,0.31394231,30628.0,30626.0,0.00048972]
[1688336197276,0.62574945,30627.0,30626.0,0.00048972]
[1688336197476,0.66356814,30627.0,30626.0,0.00048972]
[1688336198983,0.72896814,30627.0,30626.0,0.00048972]
[1688336199181,0.019594,30620.0,30617.0,0.019596]
[1688336199484,0.628595,30618.0,30617.0,0.019596]
[1688336199680,0.66567414,30618.0,30617.0,0.019596]
[1688336200286,0.66567414,30618.0,30617.0,0.02509984]
[1688336202787,0.66567414,30618.0,30617.0,0.04394929]
[1688336202788,0.64682469,30618.0,30617.0,0.04394929]
[1688336203390,0.64682469,30618.0,30617.0,0.02509984]
[1688336204303,0.2482,30618.0,30617.0,0.29214929]
[1688336204589,0.5414058,30621.0,30618.0,0.0065]
[1688336204590,0.00048992,30621.0,30618.0,0.0065]
[1688336204783,0.00048992,30621.0,30620.0,0.267794]
[1688336205378,0.01871961,30621.0,30620.0,0.28664345]
[1688336205578,0.26591961,30621.0,30620.0,0.28664345]
[1688336205996,0.24768992,30621.0,30620.0,0.28664345]
[1688336206182,0.26591961,30621.0,30620.0,0.28664345]
[1688336206988,0.26591961,30621.0,30620.0,0.267794]
[1688336207893,0.00048992,30621.0,30620.0,0.28664345]
[1688336209789,0.00048992,30621.0,30620.0,0.40174345]
[1688336210701,0.3608,30626.0,30621.0,0.01884945]
[1688336210887,0.13721988,30628.0,30624.0,0.3647]
[1688336211199,0.13721988,30628.0,30625.0,0.019591]
[1688336211388,0.019589,30628.0,30626.0,0.03843945]
[1688336211791,0.07699969,30627.0,30626.0,0.03843945]
[1688336211987,0.6672,30629.0,30626.0,0.40443945]
[1688336212188,0.6672,30629.0,30627.0,0.01884945]
[1688336212387,0.6672,30629.0,30628.0,0.019589]
[1688336213081,0.380388,30629.0,30628.0,0.019589]
[1688336213293,0.39861769,30629.0,30628.0,0.019589]
[1688336213892,0.41746714,30629.0,30628.0,0.019589]
[1688336214096,0.78316714,30629.0,30625.0,0.67]
[1688336214287,0.7268,30626.0,30625.0,0.3067]
[1688336214493,0.74639,30626.0,30625.0,0.3067]
[1688336214997,0.76461969,30626.0,30625.0,0.3067]
[1688336215193,0.76461969,30626.0,30625.0,0.326291]
[1688336215694,0.37902969,30626.0,30625.0,0.692291]
[1688336216085,0.37902969,30626.0,30625.0,0.71114045]
[1688336217193,0.39861969,30626.0,30625.0,0.71114045]
[1688336217988,0.76361969,30626.0,30625.0,0.326291]